[Event "Titled Tuesday Blitz November 15 Early 2022"]
[White "Mihailidis, Anastasios"]
[Black "Tregubov, Pavel V."]
[WhiteFideId "4205588"]
[BlackFideId "4115341"]
[WhiteElo "2312"]
[BlackElo "2448"]
[Result "0-1"]
[Round "04"]
[TimeControl "180+1"]
[Date "2022.11.16"]
[WhiteClock "0:01:50"]
[BlackClock "0:00:59"]

1. e4 {[%clk 0:03:00]}  c5 {[%clk 0:02:58]} 2. Nf3 {[%clk 0:03:01]}  e6 {[%clk 0:02:58]} 3. c4 {[%clk 0:03:01]}  Nc6 {[%clk 0:02:58]} 4. Be2 {[%clk 0:03:00]}  Nf6 {[%clk 0:02:56]} 5. O-O {[%clk 0:03:01]}  d5 {[%clk 0:02:56]} 6. exd5 {[%clk 0:03:01]}  exd5 {[%clk 0:02:56]} 7. d4 {[%clk 0:02:56]}  cxd4 {[%clk 0:02:51]} 8. Nxd4 {[%clk 0:02:55]}  dxc4 {[%clk 0:02:50]} 9. Nxc6 {[%clk 0:02:54]}  Qxd1 {[%clk 0:02:50]} 10. Rxd1 {[%clk 0:02:50]}  bxc6 {[%clk 0:02:50]} 11. Bxc4 {[%clk 0:02:50]}  Be7 {[%clk 0:02:29]} 12. Re1 {[%clk 0:02:50]}  Nd5 {[%clk 0:02:18]} 13. Bxd5 {[%clk 0:02:41]}  cxd5 {[%clk 0:02:17]} 14. Nc3 {[%clk 0:02:31]}  Be6 {[%clk 0:02:17]} 15. Rd1 {[%clk 0:02:32]}  Rd8 {[%clk 0:02:12]} 16. Be3 {[%clk 0:02:32]}  a6 {[%clk 0:02:05]} 17. Rd2 {[%clk 0:02:31]}  O-O {[%clk 0:02:02]} 18. Rad1 {[%clk 0:02:32]}  Bb4 {[%clk 0:01:53]} 19. Rd4 {[%clk 0:02:20]}  Bxc3 {[%clk 0:01:49]} 20. bxc3 {[%clk 0:02:21]}  Rc8 {[%clk 0:01:49]} 21. Bd2 {[%clk 0:02:20]}  Rc4 {[%clk 0:01:48]} 22. Rxc4 {[%clk 0:02:19]}  dxc4 {[%clk 0:01:47]} 23. Be3 {[%clk 0:02:19]}  Rb8 {[%clk 0:01:42]} 24. a4 {[%clk 0:02:04]}  Kf8 {[%clk 0:01:40]} 25. Bc5+ {[%clk 0:02:04]}  Ke8 {[%clk 0:01:40]} 26. a5 {[%clk 0:02:03]}  Rb2 {[%clk 0:01:28]} 27. Bb4 {[%clk 0:02:01]}  Bf5 {[%clk 0:01:02]} 28. h3 {[%clk 0:01:58]}  Bd3 {[%clk 0:01:01]} 29. Re1+ {[%clk 0:01:54]}  Re2 {[%clk 0:01:00]} 30. Rb1 {[%clk 0:01:50]}  Bxb1 {[%clk 0:00:59]} 0-1


[Site "https://www.chess.com"]

[Event "Titled Tuesday Blitz November 15 Early 2022"]
[White "Milikow, Yoav"]
[Black "Demin, Vladimir"]
[WhiteFideId "2822237"]
[BlackFideId "4167457"]
[WhiteElo "2341"]
[BlackElo "2553"]
[Result "1/2-1/2"]
[Round "04"]
[TimeControl "180+1"]
[Date "2022.11.16"]
[WhiteClock "0:00:12"]
[BlackClock "0:00:03"]

1. d4 {[%clk 0:02:42]}  Nf6 {[%clk 0:02:59]} 2. c4 {[%clk 0:02:34]}  e5 {[%clk 0:02:59]} 3. dxe5 {[%clk 0:02:30]}  Ng4 {[%clk 0:02:58]} 4. e4 {[%clk 0:02:30]}  Nxe5 {[%clk 0:02:57]} 5. f4 {[%clk 0:02:26]}  Nec6 {[%clk 0:02:57]} 6. Nc3 {[%clk 0:02:25]}  Bc5 {[%clk 0:02:56]} 7. Na4 {[%clk 0:02:26]}  Bb4+ {[%clk 0:02:51]} 8. Kf2 {[%clk 0:02:15]}  O-O {[%clk 0:02:39]} 9. Nf3 {[%clk 0:02:05]}  Re8 {[%clk 0:02:27]} 10. a3 {[%clk 0:02:00]}  Bf8 {[%clk 0:02:25]} 11. Bd3 {[%clk 0:01:58]}  d6 {[%clk 0:02:23]} 12. b4 {[%clk 0:01:55]}  Qf6 {[%clk 0:02:15]} 13. Rb1 {[%clk 0:01:32]}  Bg4 {[%clk 0:02:15]} 14. Be3 {[%clk 0:01:22]}  Nd7 {[%clk 0:02:06]} 15. Rc1 {[%clk 0:01:14]}  a5 {[%clk 0:01:43]} 16. b5 {[%clk 0:01:10]}  Ne7 {[%clk 0:01:42]} 17. Nc3 {[%clk 0:01:01]}  c6 {[%clk 0:01:34]} 18. h3 {[%clk 0:00:55]}  Bxf3 {[%clk 0:01:33]} 19. Qxf3 {[%clk 0:00:56]}  Ng6 {[%clk 0:01:25]} 20. Rhd1 {[%clk 0:00:53]}  Nh4 {[%clk 0:01:06]} 21. Qe2 {[%clk 0:00:46]}  Ne5 {[%clk 0:01:05]} 22. Bb1 {[%clk 0:00:46]}  Nhg6 {[%clk 0:00:56]} 23. g3 {[%clk 0:00:43]}  d5 {[%clk 0:00:39]} 24. cxd5 {[%clk 0:00:41]}  Bxa3 {[%clk 0:00:39]} 25. Rc2 {[%clk 0:00:40]}  Bb4 {[%clk 0:00:31]} 26. Na2 {[%clk 0:00:35]}  cxd5 {[%clk 0:00:29]} 27. Rxd5 {[%clk 0:00:35]}  Rad8 {[%clk 0:00:25]} 28. Kg2 {[%clk 0:00:31]}  Rxd5 {[%clk 0:00:24]} 29. exd5 {[%clk 0:00:32]}  Nd7 {[%clk 0:00:17]} 30. Qd3 {[%clk 0:00:25]}  Bd6 {[%clk 0:00:14]} 31. Re2 {[%clk 0:00:24]}  h5 {[%clk 0:00:13]} 32. Nc3 {[%clk 0:00:22]}  h4 {[%clk 0:00:12]} 33. Ne4 {[%clk 0:00:22]}  Qe7 {[%clk 0:00:11]} 34. Bd2 {[%clk 0:00:19]}  Kf8 {[%clk 0:00:05]} 35. Re1 {[%clk 0:00:17]}  hxg3 {[%clk 0:00:04]} 36. Nxd6 {[%clk 0:00:17]}  Qxd6 {[%clk 0:00:04]} 37. Rxe8+ {[%clk 0:00:18]}  Kxe8 {[%clk 0:00:05]} 38. Kxg3 {[%clk 0:00:19]}  Nf6 {[%clk 0:00:04]} 39. Ba2 {[%clk 0:00:16]}  Nh5+ {[%clk 0:00:04]} 40. Kf3 {[%clk 0:00:17]}  Nhxf4 {[%clk 0:00:05]} 41. Qe4+ {[%clk 0:00:17]}  Kf8 {[%clk 0:00:04]} 42. Bxf4 {[%clk 0:00:17]}  Nh4+ {[%clk 0:00:03]} 43. Ke2 {[%clk 0:00:17]}  Qf6 {[%clk 0:00:02]} 44. d6 {[%clk 0:00:16]}  Qb2+ {[%clk 0:00:02]} 45. Kf1 {[%clk 0:00:16]}  Ng6 {[%clk 0:00:03]} 46. d7 {[%clk 0:00:15]}  Qxb5+ {[%clk 0:00:01]} 47. Qc4 {[%clk 0:00:14]}  Qxd7 {[%clk 0:00:02]} 48. Bd6+ {[%clk 0:00:13]}  Kg8 {[%clk 0:00:01]} 49. Bg3 {[%clk 0:00:13]}  Qxh3+ {[%clk 0:00:02]} 50. Kf2 {[%clk 0:00:14]}  Qd7 {[%clk 0:00:02]} 51. Bb1 {[%clk 0:00:13]}  Ne7 {[%clk 0:00:02]} 52. Qc2 {[%clk 0:00:12]}  g6 {[%clk 0:00:01]} 53. Qb2 {[%clk 0:00:12]}  Nf5 {[%clk 0:00:02]} 54. Be5 {[%clk 0:00:11]}  Ne7 {[%clk 0:00:01]} 55. Ba2 {[%clk 0:00:10]}  Nc6 {[%clk 0:00:01]} 56. Bc3 {[%clk 0:00:10]}  Qf5+ {[%clk 0:00:01]} 57. Ke1 {[%clk 0:00:10]}  Qe4+ {[%clk 0:00:02]} 58. Kd2 {[%clk 0:00:10]}  Qf4+ {[%clk 0:00:02]} 59. Kc2 {[%clk 0:00:10]}  Qe4+ {[%clk 0:00:02]} 60. Kd1 {[%clk 0:00:10]}  Qf3+ {[%clk 0:00:02]} 61. Ke1 {[%clk 0:00:10]}  Qe3+ {[%clk 0:00:02]} 62. Kd1 {[%clk 0:00:10]}  Qf3+ {[%clk 0:00:02]} 63. Kc1 {[%clk 0:00:11]}  Qe3+ {[%clk 0:00:03]} 64. Bd2 {[%clk 0:00:12]}  Qc5+ {[%clk 0:00:03]} 65. Kb1 {[%clk 0:00:12]}  Qf5+ {[%clk 0:00:03]} 66. Ka1 {[%clk 0:00:12]}  Qf1+ {[%clk 0:00:03]} 67. Bb1 {[%clk 0:00:13]}  Qc4 {[%clk 0:00:03]} 68. Bc3 {[%clk 0:00:13]}  Qa4+ {[%clk 0:00:03]} 69. Ba2 {[%clk 0:00:13]}  Qd1+ {[%clk 0:00:04]} 70. Qb1 {[%clk 0:00:13]}  Qxb1+ {[%clk 0:00:04]} 71. Kxb1 {[%clk 0:00:14]}  g5 {[%clk 0:00:03]} 72. Bd5 {[%clk 0:00:13]}  g4 {[%clk 0:00:03]} 73. Kc2 {[%clk 0:00:13]}  Kf8 {[%clk 0:00:02]} 74. Kd2 {[%clk 0:00:13]}  f5 {[%clk 0:00:02]} 75. Ke3 {[%clk 0:00:13]}  Ke7 {[%clk 0:00:02]} 76. Kf4 {[%clk 0:00:13]}  Kd6 {[%clk 0:00:02]} 77. Bg8 {[%clk 0:00:13]}  a4 {[%clk 0:00:02]} 78. Bh7 {[%clk 0:00:11]}  b5 {[%clk 0:00:02]} 79. Bxf5 {[%clk 0:00:11]}  b4 {[%clk 0:00:02]} 80. Ba1 {[%clk 0:00:11]}  Ne7 {[%clk 0:00:02]} 81. Bc2 {[%clk 0:00:11]}  b3 {[%clk 0:00:01]} 82. Bd1 {[%clk 0:00:11]}  Nd5+ {[%clk 0:00:01]} 83. Ke4 {[%clk 0:00:11]}  Kc5 {[%clk 0:00:02]} 84. Bxg4 {[%clk 0:00:10]}  a3 {[%clk 0:00:01]} 85. Kd3 {[%clk 0:00:11]}  Nb4+ {[%clk 0:00:01]} 86. Kc3 {[%clk 0:00:11]}  b2 {[%clk 0:00:02]} 87. Bxb2 {[%clk 0:00:11]}  axb2 {[%clk 0:00:03]} 88. Kxb2 {[%clk 0:00:12]} 1/2-1/2


[Site "https://www.chess.com"]

[Event "Titled Tuesday Blitz November 15 Early 2022"]
[White "Mischuk, Dmitry"]
[Black "Kamsky, Gata"]
[WhiteFideId "14118734"]
[BlackFideId "2000024"]
[WhiteElo "2256"]
[BlackElo "2666"]
[Result "1/2-1/2"]
[Round "04"]
[TimeControl "180+1"]
[Date "2022.11.15"]
[WhiteClock "0:00:31"]
[BlackClock "0:00:05"]

1. d4 {[%clk 0:03:00]}  d5 {[%clk 0:02:52]} 2. c4 {[%clk 0:03:00]}  c6 {[%clk 0:02:51]} 3. Nf3 {[%clk 0:02:59]}  Nf6 {[%clk 0:02:50]} 4. g3 {[%clk 0:02:58]}  g6 {[%clk 0:02:49]} 5. Bg2 {[%clk 0:02:57]}  Bg7 {[%clk 0:02:50]} 6. O-O {[%clk 0:02:57]}  O-O {[%clk 0:02:50]} 7. cxd5 {[%clk 0:02:56]}  cxd5 {[%clk 0:02:50]} 8. Nc3 {[%clk 0:02:55]}  e6 {[%clk 0:02:49]} 9. Ne5 {[%clk 0:02:52]}  Bd7 {[%clk 0:02:49]} 10. Bg5 {[%clk 0:02:45]}  h6 {[%clk 0:02:36]} 11. Bf4 {[%clk 0:02:37]}  Nc6 {[%clk 0:02:36]} 12. Nxc6 {[%clk 0:02:35]}  Bxc6 {[%clk 0:02:35]} 13. Be5 {[%clk 0:02:35]}  Qe7 {[%clk 0:02:34]} 14. Rc1 {[%clk 0:02:34]}  Rfd8 {[%clk 0:02:31]} 15. a3 {[%clk 0:02:33]}  Bf8 {[%clk 0:02:30]} 16. Bxf6 {[%clk 0:02:33]}  Qxf6 {[%clk 0:02:30]} 17. e3 {[%clk 0:02:33]}  Rac8 {[%clk 0:02:27]} 18. b4 {[%clk 0:02:26]}  a5 {[%clk 0:02:12]} 19. Qb3 {[%clk 0:02:19]}  Qe7 {[%clk 0:02:10]} 20. Rb1 {[%clk 0:02:09]}  axb4 {[%clk 0:02:08]} 21. axb4 {[%clk 0:02:10]}  Be8 {[%clk 0:02:07]} 22. Rfc1 {[%clk 0:02:08]}  Rc4 {[%clk 0:02:06]} 23. Na2 {[%clk 0:02:04]}  Rdc8 {[%clk 0:01:59]} 24. Rd1 {[%clk 0:01:48]}  Qd7 {[%clk 0:01:40]} 25. Bf1 {[%clk 0:01:47]}  R4c7 {[%clk 0:01:40]} 26. b5 {[%clk 0:01:45]}  b6 {[%clk 0:01:31]} 27. Bd3 {[%clk 0:01:45]}  Qd6 {[%clk 0:01:29]} 28. Rdc1 {[%clk 0:01:39]}  Qa3 {[%clk 0:01:24]} 29. Rxc7 {[%clk 0:01:37]}  Rxc7 {[%clk 0:01:23]} 30. Qxa3 {[%clk 0:01:37]}  Bxa3 {[%clk 0:01:22]} 31. Rb3 {[%clk 0:01:37]}  Ra7 {[%clk 0:01:18]} 32. Nb4 {[%clk 0:01:33]}  Bxb4 {[%clk 0:01:18]} 33. Rxb4 {[%clk 0:01:33]}  Kf8 {[%clk 0:01:17]} 34. Rb2 {[%clk 0:01:32]}  Ke7 {[%clk 0:01:17]} 35. h4 {[%clk 0:01:32]}  g5 {[%clk 0:01:15]} 36. hxg5 {[%clk 0:01:32]}  hxg5 {[%clk 0:01:15]} 37. Kg2 {[%clk 0:01:33]}  Ra3 {[%clk 0:01:07]} 38. Be2 {[%clk 0:01:32]}  Kd6 {[%clk 0:01:00]} 39. Bf1 {[%clk 0:01:31]}  f6 {[%clk 0:00:59]} 40. Rb4 {[%clk 0:01:22]}  Bg6 {[%clk 0:00:57]} 41. Be2 {[%clk 0:01:20]}  Ra2 {[%clk 0:00:54]} 42. Bf3 {[%clk 0:01:18]}  Bd3 {[%clk 0:00:53]} 43. Rb3 {[%clk 0:01:11]}  Bc4 {[%clk 0:00:52]} 44. Rb1 {[%clk 0:01:11]}  Ra5 {[%clk 0:00:52]} 45. Rh1 {[%clk 0:01:11]}  f5 {[%clk 0:00:47]} 46. g4 {[%clk 0:01:10]}  Rxb5 {[%clk 0:00:36]} 47. Rh6 {[%clk 0:01:06]}  Ke7 {[%clk 0:00:35]} 48. gxf5 {[%clk 0:01:05]}  exf5 {[%clk 0:00:34]} 49. Bh5 {[%clk 0:01:01]}  Bd3 {[%clk 0:00:30]} 50. Rg6 {[%clk 0:00:54]}  g4 {[%clk 0:00:26]} 51. Rh6 {[%clk 0:00:51]}  Rb2 {[%clk 0:00:25]} 52. Kg3 {[%clk 0:00:50]}  b5 {[%clk 0:00:20]} 53. Rb6 {[%clk 0:00:50]}  Kd7 {[%clk 0:00:18]} 54. Bf7 {[%clk 0:00:50]}  Kc7 {[%clk 0:00:18]} 55. Rf6 {[%clk 0:00:49]}  Be4 {[%clk 0:00:18]} 56. Bg6 {[%clk 0:00:45]}  b4 {[%clk 0:00:14]} 57. Bxf5 {[%clk 0:00:45]}  Bxf5 {[%clk 0:00:14]} 58. Rxf5 {[%clk 0:00:46]}  Kc6 {[%clk 0:00:14]} 59. Rf8 {[%clk 0:00:46]}  Rb1 {[%clk 0:00:13]} 60. Rb8 {[%clk 0:00:46]}  Kc7 {[%clk 0:00:07]} 61. Rb5 {[%clk 0:00:45]}  Kc6 {[%clk 0:00:07]} 62. Rb8 {[%clk 0:00:45]}  Kc7 {[%clk 0:00:05]} 63. Rb5 {[%clk 0:00:45]}  Kc6 {[%clk 0:00:05]} 64. Rb8 {[%clk 0:00:31]} 1/2-1/2


[Site "https://www.chess.com"]

[Event "Titled Tuesday Blitz November 15 Early 2022"]
[White "Miszler, Levente"]
[Black "Ciuffoletti, Paolo"]
[WhiteFideId "763276"]
[BlackFideId "807630"]
[WhiteElo "2176"]
[BlackElo "2143"]
[Result "0-1"]
[Round "04"]
[TimeControl "180+1"]
[Date "2022.11.16"]
[WhiteClock "0:00:01"]
[BlackClock "0:00:02"]

1. Nf3 {[%clk 0:03:00]}  d5 {[%clk 0:02:59]} 2. c4 {[%clk 0:02:55]}  c6 {[%clk 0:02:58]} 3. g3 {[%clk 0:02:49]}  Nf6 {[%clk 0:02:57]} 4. Bg2 {[%clk 0:02:47]}  g6 {[%clk 0:02:53]} 5. O-O {[%clk 0:02:47]}  Bg7 {[%clk 0:02:53]} 6. Qc2 {[%clk 0:02:47]}  O-O {[%clk 0:02:53]} 7. d3 {[%clk 0:02:47]}  Bg4 {[%clk 0:02:39]} 8. Nbd2 {[%clk 0:02:31]}  Na6 {[%clk 0:02:29]} 9. a3 {[%clk 0:02:30]}  Rc8 {[%clk 0:02:11]} 10. Rb1 {[%clk 0:02:29]}  b5 {[%clk 0:02:02]} 11. b4 {[%clk 0:02:25]}  bxc4 {[%clk 0:01:58]} 12. dxc4 {[%clk 0:02:25]}  Bf5 {[%clk 0:01:58]} 13. e4 {[%clk 0:02:22]}  dxe4 {[%clk 0:01:40]} 14. Nh4 {[%clk 0:02:20]}  e3 {[%clk 0:01:38]} 15. Nxf5 {[%clk 0:02:17]}  exd2 {[%clk 0:01:38]} 16. Bxd2 {[%clk 0:01:58]}  gxf5 {[%clk 0:01:38]} 17. Rbd1 {[%clk 0:01:58]}  e6 {[%clk 0:01:30]} 18. Bf4 {[%clk 0:01:20]}  Qb6 {[%clk 0:01:17]} 19. Rd6 {[%clk 0:01:01]}  Rfd8 {[%clk 0:01:06]} 20. Rfd1 {[%clk 0:00:57]}  Rxd6 {[%clk 0:01:05]} 21. Rxd6 {[%clk 0:00:55]}  Bf8 {[%clk 0:00:58]} 22. Rd1 {[%clk 0:00:28]}  Nb8 {[%clk 0:00:41]} 23. Qc3 {[%clk 0:00:22]}  Nbd7 {[%clk 0:00:37]} 24. c5 {[%clk 0:00:13]}  Qb7 {[%clk 0:00:35]} 25. g4 {[%clk 0:00:08]}  fxg4 {[%clk 0:00:31]} 26. h3 {[%clk 0:00:07]}  Bg7 {[%clk 0:00:29]} 27. Qg3 {[%clk 0:00:05]}  Nh5 {[%clk 0:00:27]} 28. Qxg4 {[%clk 0:00:06]}  Nxf4 {[%clk 0:00:27]} 29. Qxf4 {[%clk 0:00:06]}  Nf6 {[%clk 0:00:24]} 30. Qd6 {[%clk 0:00:05]}  Bf8 {[%clk 0:00:22]} 31. Qf4 {[%clk 0:00:04]}  Qe7 {[%clk 0:00:19]} 32. Rd3 {[%clk 0:00:05]}  Rd8 {[%clk 0:00:19]} 33. Rg3+ {[%clk 0:00:05]}  Kh8 {[%clk 0:00:19]} 34. Be4 {[%clk 0:00:04]}  Bg7 {[%clk 0:00:18]} 35. Bc2 {[%clk 0:00:04]}  Rd5 {[%clk 0:00:17]} 36. Bb3 {[%clk 0:00:03]}  Rd8 {[%clk 0:00:14]} 37. Bc2 {[%clk 0:00:02]}  h6 {[%clk 0:00:13]} 38. Qh4 {[%clk 0:00:02]}  Nd5 {[%clk 0:00:11]} 39. Qg4 {[%clk 0:00:02]}  Qf6 {[%clk 0:00:10]} 40. Qe4 {[%clk 0:00:02]}  Qf5 {[%clk 0:00:05]} 41. Qe2 {[%clk 0:00:01]}  Qf6 {[%clk 0:00:04]} 42. Qe4 {[%clk 0:00:01]}  Qf5 {[%clk 0:00:04]} 43. Qe2 {[%clk 0:00:01]}  Qe5 {[%clk 0:00:02]} 0-1


[Site "https://www.chess.com"]

[Event "Titled Tuesday Blitz November 15 Early 2022"]
[White "Mladenovic, Stefan"]
[Black "Hoffmann, Asa"]
[WhiteFideId "942227"]
[BlackFideId "2001470"]
[WhiteElo "2337"]
[BlackElo "2117"]
[Result "1-0"]
[Round "04"]
[TimeControl "180+1"]
[Date "2022.11.16"]
[WhiteClock "0:02:17"]
[BlackClock "0:00:37"]

1. d4 {[%clk 0:03:00]}  Nf6 {[%clk 0:02:54]} 2. Nf3 {[%clk 0:03:01]}  d6 {[%clk 0:02:53]} 3. Bf4 {[%clk 0:03:01]}  Bg4 {[%clk 0:02:52]} 4. e3 {[%clk 0:02:58]}  Nbd7 {[%clk 0:02:52]} 5. h3 {[%clk 0:02:58]}  Bh5 {[%clk 0:02:51]} 6. g4 {[%clk 0:02:58]}  Bg6 {[%clk 0:02:51]} 7. Bg2 {[%clk 0:02:58]}  c6 {[%clk 0:02:50]} 8. O-O {[%clk 0:02:58]}  e6 {[%clk 0:02:47]} 9. c4 {[%clk 0:02:58]}  Be7 {[%clk 0:02:47]} 10. Nc3 {[%clk 0:02:58]}  O-O {[%clk 0:02:45]} 11. Qb3 {[%clk 0:02:59]}  Qb6 {[%clk 0:02:40]} 12. Rfe1 {[%clk 0:02:56]}  Ne4 {[%clk 0:02:35]} 13. Rac1 {[%clk 0:02:47]}  Nxc3 {[%clk 0:02:25]} 14. Qxc3 {[%clk 0:02:43]}  a5 {[%clk 0:02:20]} 15. e4 {[%clk 0:02:43]}  c5 {[%clk 0:02:18]} 16. d5 {[%clk 0:02:43]}  Bf6 {[%clk 0:02:15]} 17. e5 {[%clk 0:02:40]}  dxe5 {[%clk 0:02:10]} 18. Nxe5 {[%clk 0:02:40]}  Nxe5 {[%clk 0:02:06]} 19. Bxe5 {[%clk 0:02:41]}  Bxe5 {[%clk 0:01:57]} 20. Rxe5 {[%clk 0:02:38]}  exd5 {[%clk 0:01:49]} 21. cxd5 {[%clk 0:02:37]}  Rac8 {[%clk 0:01:48]} 22. f4 {[%clk 0:02:32]}  f6 {[%clk 0:01:46]} 23. Re6 {[%clk 0:02:32]}  Qb4 {[%clk 0:01:44]} 24. Qxb4 {[%clk 0:02:25]}  axb4 {[%clk 0:01:32]} 25. d6 {[%clk 0:02:24]}  Bf7 {[%clk 0:01:26]} 26. Re7 {[%clk 0:02:25]}  b6 {[%clk 0:01:12]} 27. d7 {[%clk 0:02:23]}  Rc7 {[%clk 0:01:02]} 28. Rd1 {[%clk 0:02:23]}  Rd8 {[%clk 0:01:00]} 29. Bd5 {[%clk 0:02:17]}  Bxd5 {[%clk 0:00:56]} 30. Re8+ {[%clk 0:02:17]}  Kf7 {[%clk 0:00:51]} 31. Rxd8 {[%clk 0:02:17]}  Bc6 {[%clk 0:00:39]} 32. Rf8+ {[%clk 0:02:16]}  Kxf8 {[%clk 0:00:37]} 33. d8=Q+ {[%clk 0:02:17]} 1-0


[Site "https://www.chess.com"]

[Event "Titled Tuesday Blitz November 15 Early 2022"]
[White "Mouhamad, Joachim"]
[Black "Godzwon, Iwo"]
[WhiteFideId "656410"]
[BlackFideId "21802483"]
[WhiteElo "2164"]
[BlackElo "2284"]
[Result "1-0"]
[Round "04"]
[TimeControl "180+1"]
[Date "2022.11.16"]
[WhiteClock "0:00:06"]
[BlackClock "0:00:03"]

1. e4 {[%clk 0:02:51]}  c5 {[%clk 0:02:59]} 2. Nf3 {[%clk 0:02:51]}  e6 {[%clk 0:03:00]} 3. d4 {[%clk 0:02:51]}  cxd4 {[%clk 0:03:01]} 4. Nxd4 {[%clk 0:02:52]}  Nc6 {[%clk 0:03:01]} 5. Nc3 {[%clk 0:02:51]}  Qc7 {[%clk 0:03:01]} 6. Be3 {[%clk 0:02:50]}  Nf6 {[%clk 0:02:57]} 7. Qd2 {[%clk 0:02:50]}  Bb4 {[%clk 0:02:53]} 8. f3 {[%clk 0:02:49]}  d5 {[%clk 0:02:53]} 9. a3 {[%clk 0:02:01]}  Bxc3 {[%clk 0:02:17]} 10. Qxc3 {[%clk 0:02:01]}  dxe4 {[%clk 0:02:17]} 11. Nxc6 {[%clk 0:01:52]}  bxc6 {[%clk 0:02:15]} 12. fxe4 {[%clk 0:01:45]}  O-O {[%clk 0:02:15]} 13. Bd3 {[%clk 0:01:41]}  a5 {[%clk 0:01:43]} 14. O-O-O {[%clk 0:01:16]}  Ba6 {[%clk 0:01:35]} 15. Rdf1 {[%clk 0:01:07]}  Bxd3 {[%clk 0:01:27]} 16. cxd3 {[%clk 0:01:07]}  Ng4 {[%clk 0:01:08]} 17. Bf4 {[%clk 0:00:59]}  Qb6 {[%clk 0:01:08]} 18. h3 {[%clk 0:00:42]}  Nf6 {[%clk 0:00:56]} 19. Rf3 {[%clk 0:00:37]}  Nd7 {[%clk 0:00:54]} 20. Bd6 {[%clk 0:00:35]}  Rfe8 {[%clk 0:00:49]} 21. Rhf1 {[%clk 0:00:36]}  f6 {[%clk 0:00:49]} 22. d4 {[%clk 0:00:32]}  Rac8 {[%clk 0:00:45]} 23. Bc5 {[%clk 0:00:31]}  Qb5 {[%clk 0:00:43]} 24. g4 {[%clk 0:00:28]}  e5 {[%clk 0:00:35]} 25. Qb3+ {[%clk 0:00:07]}  Qxb3 {[%clk 0:00:35]} 26. Rxb3 {[%clk 0:00:08]}  exd4 {[%clk 0:00:34]} 27. Bxd4 {[%clk 0:00:09]}  Rxe4 {[%clk 0:00:35]} 28. Bc3 {[%clk 0:00:09]}  Nc5 {[%clk 0:00:31]} 29. Rb6 {[%clk 0:00:07]}  Na4 {[%clk 0:00:30]} 30. Bxa5 {[%clk 0:00:06]}  Nxb6 {[%clk 0:00:30]} 31. Bxb6 {[%clk 0:00:07]}  h5 {[%clk 0:00:24]} 32. gxh5 {[%clk 0:00:06]}  Rh4 {[%clk 0:00:24]} 33. Rf3 {[%clk 0:00:07]}  Rxh5 {[%clk 0:00:24]} 34. a4 {[%clk 0:00:07]}  Kf7 {[%clk 0:00:21]} 35. a5 {[%clk 0:00:07]}  Ra8 {[%clk 0:00:22]} 36. b4 {[%clk 0:00:08]}  Rd5 {[%clk 0:00:20]} 37. Kc2 {[%clk 0:00:08]}  f5 {[%clk 0:00:20]} 38. Kc3 {[%clk 0:00:08]}  g5 {[%clk 0:00:20]} 39. Kc4 {[%clk 0:00:08]}  Kg6 {[%clk 0:00:20]} 40. Ra3 {[%clk 0:00:07]}  g4 {[%clk 0:00:20]} 41. hxg4 {[%clk 0:00:07]}  fxg4 {[%clk 0:00:20]} 42. Bc5 {[%clk 0:00:08]}  Rf5 {[%clk 0:00:19]} 43. a6 {[%clk 0:00:08]}  Rf3 {[%clk 0:00:20]} 44. Ra1 {[%clk 0:00:07]}  Kf5 {[%clk 0:00:19]} 45. a7 {[%clk 0:00:08]}  g3 {[%clk 0:00:19]} 46. b5 {[%clk 0:00:08]}  cxb5+ {[%clk 0:00:19]} 47. Kxb5 {[%clk 0:00:09]}  Kg4 {[%clk 0:00:18]} 48. Kc6 {[%clk 0:00:09]}  Rf7 {[%clk 0:00:17]} 49. Bb6 {[%clk 0:00:09]}  Rc8+ {[%clk 0:00:15]} 50. Kb5 {[%clk 0:00:09]}  Ra8 {[%clk 0:00:15]} 51. Ka6 {[%clk 0:00:09]}  g2 {[%clk 0:00:13]} 52. Ra4+ {[%clk 0:00:10]}  Kh3 {[%clk 0:00:11]} 53. Ra3+ {[%clk 0:00:10]}  Kh2 {[%clk 0:00:10]} 54. Ra2 {[%clk 0:00:10]}  Kh1 {[%clk 0:00:10]} 55. Ra1+ {[%clk 0:00:10]}  Rf1 {[%clk 0:00:10]} 56. Ra5 {[%clk 0:00:06]}  Rf6 {[%clk 0:00:03]} 57. Rh5# {[%clk 0:00:06]} 1-0


[Site "https://www.chess.com"]